[Event "Hungarian Rapid-ch 2022"]
[Site "Ajka"]
[Date "2022.07.17"]
[Round "13.3"]
[White "Kozak, Adam"]
[Black "Lizak, Peter"]
[Result "1-0"]
[ECO "A05"]
[WhiteElo "2522"]
[BlackElo "2400"]
[Annotator "ChessBase"]
[PlyCount "125"]
[EventDate "2022.07.15"]
[EventType "swiss"]
[EventCountry "HUN"]
[SourceTitle "playchess.com"]
[Source "ChessBase"]
[SourceQuality "1"]
[TimeControl "900+10"]

1. Nf3 {[%emt 0:00:12]} Nf6 {[%emt 0:00:12]} 2. b3 {[%emt 0:00:03]} g6 {[%emt 0:00:07]} 3. Bb2 {[%emt 0:00:01]} Bg7 {[%emt 0:00:01]} 4. g3 {[%emt 0:00:07]} b6 {[%emt 0:00:15]} 5. Bg2 {[%emt 0:00:03]} Bb7 {[%emt 0:00:02]} 6. O-O {[%emt 0:00:04]} O-O {[%emt 0:00:02]} 7. c4 {[%emt 0:00:05]} c5 {[%emt 0:01:20]} 8. Nc3 {[%emt 0:00:06]} Ne4 {[%emt 0:00:18]} 9. Rc1 {[%emt 0:00:49]} d6 {[%emt 0:00:34]} 10. e3 {[%emt 0:00:37]} Nd7 {[%emt 0:00:32]} 11. d4 {[%emt 0:00:24]} Nxc3 {[%emt 0:00:15]} 12. Bxc3 {[%emt 0:00:02]} Nf6 {[%emt 0:00:02]} 13. Re1 {[%emt 0:02:21]} Be4 {[%emt 0:00:08]} 14. Bh3 {[%emt 0:01:14]} Qc7 {[%emt 0:00:22]} 15. Nd2 {[%emt 0:00:07]} Bb7 {[%emt 0:00:29]} 16. d5 {[%emt 0:00:04]} Rae8 {[%emt 0:01:22]} 17. e4 {[%emt 0:00:24]} e5 {[%emt 0:00:29]} 18. f4 {[%emt 0:03:53]} exf4 {[%emt 0:02:46]} 19. gxf4 {[%emt 0:00:04]} Bc8 {[%emt 0:00:04]} 20. Bg2 {[%emt 0:00:50]} Bg4 {[%emt 0:00:44]} 21. Qc2 {[%emt 0:00:06]} Nh5 {[%emt 0:02:16]} 22. Bxg7 {[%emt 0:00:03]} Kxg7 {[%emt 0:00:02]} 23. Qc3+ {[%emt 0:00:27]} f6 {[%emt 0:00:44]} 24. Qe3 {[%emt 0:00:49]} Qe7 {[%emt 0:00:26]} 25. h3 {[%emt 0:00:59]} Bc8 {[%emt 0:00:12]} 26. Bf3 {[%emt 0:00:24]} Kh8 {[%emt 0:00:50]} 27. Bxh5 {[%emt 0:00:30]} gxh5 {[%emt 0:00:01]} 28. Kh2 {[%emt 0:00:01]} Rg8 {[%emt 0:01:03]} 29. Rg1 {[%emt 0:00:10]} Rg6 {[%emt 0:00:47]} 30. Rce1 {[%emt 0:02:30]} Qg7 {[%emt 0:00:49]} 31. Nf3 {[%emt 0:01:14]} Qh6 {[%emt 0:01:27]} 32. Nh4 {[%emt 0:00:38]} Rgg8 {[%emt 0:00:20]} 33. Qf3 {[%emt 0:00:28]} Bd7 {[%emt 0:00:18]} 34. Qe3 {[%emt 0:00:30]} a6 {[%emt 0:00:09]} 35. Rxg8+ {[%emt 0:00:26]} Rxg8 {[%emt 0:00:02]} 36. e5 {[%emt 0:00:07]} fxe5 {[%emt 0:00:31]} 37. fxe5 {[%emt 0:00:01]} Qxe3 38. Rxe3 {[%emt 0:00:00]} dxe5 {[%emt 0:00:03]} 39. Rxe5 {[%emt 0:00:01]} b5 {[%emt 0:00:02]} 40. Nf3 {[%emt 0:00:39]} bxc4 {[%emt 0:00:21]} 41. bxc4 {[%emt 0:00:01]} Rf8 {[%emt 0:00:01]} 42. Kg3 {[%emt 0:00:12]} Bxh3 {[%emt 0:00:05]} 43. Rxh5 {[%emt 0:00:09]} Bf1 {[%emt 0:00:04]} 44. Nd2 {[%emt 0:00:18]} Bd3 {[%emt 0:00:13]} 45. d6 {[%emt 0:00:05]} Rd8 {[%emt 0:00:11]} 46. Rd5 {[%emt 0:00:02]} Bg6 {[%emt 0:00:03]} 47. Nb3 {[%emt 0:00:28]} Bf7 {[%emt 0:00:07]} 48. Rd2 {[%emt 0:00:01]} Bxc4 {[%emt 0:00:05]} 49. Nxc5 {[%emt 0:00:01]} Kg8 {[%emt 0:00:21]} 50. d7 {[%emt 0:00:17]} Bb5 {[%emt 0:00:18]} 51. a4 {[%emt 0:00:01]} Bc6 {[%emt 0:00:39]} 52. Rd6 {[%emt 0:00:01]} Bxd7 {[%emt 0:00:02]} 53. Rxd7 {[%emt 0:00:08]} Ra8 {[%emt 0:00:55]} 54. Kf4 {[%emt 0:00:27]} Rc8 {[%emt 0:00:02]} 55. Rd5 {[%emt 0:00:01]} Rc6 {[%emt 0:00:04]} 56. a5 {[%emt 0:00:12]} Kf7 {[%emt 0:00:02]} 57. Kf5 {[%emt 0:00:15]} Rf6+ {[%emt 0:00:04]} 58. Ke5 {[%emt 0:00:01]} Rc6 {[%emt 0:00:04]} 59. Rd7+ {[%emt 0:00:35]} Kg6 {[%emt 0:00:08]} 60. Kd5 {[%emt 0:00:10]} Rf6 {[%emt 0:00:04]} 61. Rb7 {[%emt 0:00:11]} h5 {[%emt 0:00:04]} 62. Rb6 {[%emt 0:00:03]} h4 {[%emt 0:00:08]} 63. Ne4 {[%emt 0:00:01]} 1-0

[Event "Hungarian Rapid-ch 2022"]
[Site "Ajka"]
[Date "2022.07.17"]
[Round "13.4"]
[White "Korpa, Bence"]
[Black "Aczel, Gergely"]
[Result "1/2-1/2"]
[ECO "A45"]
[WhiteElo "2537"]
[BlackElo "2499"]
[Annotator "ChessBase"]
[PlyCount "60"]
[EventDate "2022.07.15"]
[EventType "swiss"]
[EventCountry "HUN"]
[SourceTitle "playchess.com"]
[Source "ChessBase"]
[SourceQuality "1"]
[TimeControl "900+10"]

1. d4 {[%emt 0:00:14]} Nf6 {[%emt 0:00:11]} 2. Nc3 {[%emt 0:00:02]} d5 {[%emt 0:00:03]} 3. Bf4 {[%emt 0:00:03]} e6 {[%emt 0:00:30]} 4. Nb5 {[%emt 0:00:06]} Na6 {[%emt 0:00:07]} 5. e3 {[%emt 0:00:02]} c6 {[%emt 0:00:06]} 6. Nc3 {[%emt 0:00:03]} Nb8 {[%emt 0:00:54]} 7. g4 {[%emt 0:01:27]} b6 {[%emt 0:01:08]} 8. g5 {[%emt 0:00:16]} Nfd7 {[%emt 0:00:02]} 9. Qg4 {[%emt 0:00:17]} Bb4 {[%emt 0:02:00]} 10. h4 {[%emt 0:01:02]} e5 {[%emt 0:01:42]} 11. dxe5 {[%emt 0:00:21]} Nc5 {[%emt 0:00:03]} 12. Qf3 {[%emt 0:03:01]} Bf5 {[%emt 0:01:15]} 13. Nge2 {[%emt 0:02:30]} Be4 {[%emt 0:01:06]} 14. Qh3 {[%emt 0:00:04]} Bxh1 {[%emt 0:00:07]} 15. Qxh1 {[%emt 0:00:05]} Na4 {[%emt 0:00:09]} 16. O-O-O {[%emt 0:01:20]} Bxc3 {[%emt 0:00:02]} 17. Nxc3 {[%emt 0:00:02]} Nxc3 {[%emt 0:00:02]} 18. bxc3 {[%emt 0:00:01]} Qe7 {[%emt 0:01:02]} 19. e4 {[%emt 0:01:43]} Qa3+ {[%emt 0:03:55]} 20. Kd2 {[%emt 0:00:02]} O-O {[%emt 0:00:40]} 21. exd5 {[%emt 0:00:17]} cxd5 {[%emt 0:00:01]} 22. Qxd5 {[%emt 0:00:09]} Na6 {[%emt 0:00:34]} 23. Qb3 {[%emt 0:02:27]} Rad8+ {[%emt 0:00:01]} 24. Ke1 {[%emt 0:00:18]} Rxd1+ {[%emt 0:00:49]} 25. Kxd1 {[%emt 0:00:01]} Rd8+ {[%emt 0:00:53]} 26. Ke1 {[%emt 0:00:09]} Qa5 {[%emt 0:00:36]} 27. Bc4 {[%emt 0:00:24]} Nc5 {[%emt 0:01:04]} 28. Bxf7+ {[%emt 0:00:13]} Kf8 {[%emt 0:00:23]} 29. Qc4 {[%emt 0:00:09]} Na4 {[%emt 0:00:17]} 30. e6 {[%emt 0:02:17]} Qxc3+ {[%emt 0:00:02]} 1/2-1/2

[Event "Hungarian Rapid-ch 2022"]
[Site "Ajka"]
[Date "2022.07.17"]
[Round "13.6"]
[White "Horvath, Csaba"]
[Black "Antal, Gergely"]
[Result "1-0"]
[ECO "A05"]
[WhiteElo "2506"]
[BlackElo "2571"]
[Annotator "ChessBase"]
[PlyCount "79"]
[EventDate "2022.07.15"]
[EventType "swiss"]
[EventCountry "HUN"]
[SourceTitle "playchess.com"]
[Source "ChessBase"]
[SourceQuality "1"]
[TimeControl "900+10"]

1. Nf3 {[%emt 0:00:13]} Nf6 {[%emt 0:00:16]} 2. b3 {[%emt 0:00:01]} g6 {[%emt 0:00:05]} 3. Bb2 {[%emt 0:00:02]} Bg7 {[%emt 0:00:01]} 4. c4 {[%emt 0:00:18]} O-O {[%emt 0:00:19]} 5. g3 {[%emt 0:00:07]} d6 {[%emt 0:00:04]} 6. d4 {[%emt 0:00:28]} e5 {[%emt 0:00:01]} 7. dxe5 {[%emt 0:00:03]} Nfd7 {[%emt 0:00:13]} 8. Nc3 {[%emt 0:00:14]} dxe5 {[%emt 0:01:34]} 9. Bg2 {[%emt 0:00:17]} a5 {[%emt 0:00:05]} 10. Qd2 {[%emt 0:00:21]} c6 {[%emt 0:01:49]} 11. O-O {[%emt 0:01:31]} Nc5 {[%emt 0:00:23]} 12. Qe3 {[%emt 0:00:50]} Ncd7 {[%emt 0:02:00]} 13. Ba3 {[%emt 0:00:41]} Re8 {[%emt 0:00:01]} 14. Ne4 {[%emt 0:00:02]} Na6 {[%emt 0:00:42]} 15. Nd6 {[%emt 0:00:08]} Bf8 {[%emt 0:01:41]} 16. Rad1 {[%emt 0:00:58]} Bxd6 {[%emt 0:00:50]} 17. Bxd6 {[%emt 0:00:09]} Qf6 {[%emt 0:01:01]} 18. a3 {[%emt 0:00:26]} b6 {[%emt 0:01:15]} 19. Nxe5 {[%emt 0:04:14]} Rxe5 {[%emt 0:01:50]} 20. Bxe5 {[%emt 0:00:03]} Nxe5 {[%emt 0:00:03]} 21. f4 {[%emt 0:00:06]} Nd7 {[%emt 0:01:14]} 22. Qe8+ {[%emt 0:00:06]} Kg7 {[%emt 0:00:01]} 23. Rxd7 {[%emt 0:00:31]} Bxd7 {[%emt 0:00:02]} 24. Qxa8 {[%emt 0:00:20]} Qd4+ {[%emt 0:00:02]} 25. Kh1 {[%emt 0:00:13]} Nc5 {[%emt 0:00:01]} 26. Bxc6 {[%emt 0:02:25]} Bf5 {[%emt 0:00:01]} 27. Bf3 {[%emt 0:00:59]} Nxb3 {[%emt 0:00:04]} 28. Qd5 {[%emt 0:00:10]} Qf6 {[%emt 0:00:03]} 29. Qe5 {[%emt 0:01:19]} Qxe5 {[%emt 0:00:38]} 30. fxe5 {[%emt 0:00:02]} Kf8 {[%emt 0:02:31]} 31. Bd5 {[%emt 0:00:14]} Ke7 {[%emt 0:00:09]} 32. e4 {[%emt 0:01:39]} Nd2 {[%emt 0:00:38]} 33. Re1 {[%emt 0:00:21]} Be6 {[%emt 0:00:15]} 34. Rc1 {[%emt 0:00:07]} Bg4 {[%emt 0:00:21]} 35. Kg2 {[%emt 0:00:09]} Bf3+ {[%emt 0:00:18]} 36. Kf2 {[%emt 0:00:04]} Bxe4 {[%emt 0:00:02]} 37. Ke3 {[%emt 0:00:24]} Nb3 {[%emt 0:00:02]} 38. Rc3 {[%emt 0:00:02]} Bxd5 {[%emt 0:00:02]} 39. cxd5 {[%emt 0:00:04]} Nc5 {[%emt 0:00:01]} 40. Kd4 {[%emt 0:00:08]} 1-0

[Event "Hungarian Rapid-ch 2022"]
[Site "Ajka"]
[Date "2022.07.17"]
[Round "13.7"]
[White "Prohaszka, Peter"]
[Black "Jakab, Attila"]
[Result "1-0"]
[ECO "A40"]
[WhiteElo "2570"]
[BlackElo "2311"]
[Annotator "ChessBase"]
[PlyCount "59"]
[EventDate "2022.07.15"]
[EventType "swiss"]
[EventCountry "HUN"]
[SourceTitle "playchess.com"]
[Source "ChessBase"]
[SourceQuality "1"]
[TimeControl "900+10"]

1. d4 {[%emt 0:00:13]} e6 {[%emt 0:00:16]} 2. Nf3 {[%emt 0:00:14]} Nf6 {[%emt 0:00:02]} 3. Bf4 {[%emt 0:00:09]} d6 {[%emt 0:00:26]} 4. h3 {[%emt 0:00:51]} b6 {[%emt 0:00:09]} 5. e3 {[%emt 0:00:33]} Bb7 {[%emt 0:00:02]} 6. Be2 {[%emt 0:00:02]} Nbd7 {[%emt 0:00:16]} 7. O-O {[%emt 0:00:03]} Ne4 {[%emt 0:00:13]} 8. Bh2 {[%emt 0:00:12]} Be7 {[%emt 0:00:08]} 9. Nfd2 {[%emt 0:00:56]} Ndf6 {[%emt 0:00:34]} 10. a4 {[%emt 0:00:37]} a6 {[%emt 0:00:05]} 11. Bf3 {[%emt 0:00:17]} Qc8 {[%emt 0:00:24]} 12. c4 {[%emt 0:00:17]} O-O {[%emt 0:00:06]} 13. Nc3 {[%emt 0:01:15]} Nxd2 {[%emt 0:00:47]} 14. Bxb7 {[%emt 0:00:03]} Qxb7 {[%emt 0:00:01]} 15. Qxd2 {[%emt 0:00:01]} Ne4 {[%emt 0:00:04]} 16. Nxe4 {[%emt 0:00:39]} Qxe4 {[%emt 0:00:01]} 17. a5 {[%emt 0:00:26]} Rfb8 {[%emt 0:00:33]} 18. Rfc1 {[%emt 0:00:16]} h6 {[%emt 0:01:00]} 19. b4 {[%emt 0:01:23]} Ra7 {[%emt 0:01:09]} 20. axb6 {[%emt 0:03:37]} Rxb6 {[%emt 0:00:11]} 21. Ra4 {[%emt 0:00:09]} Rab7 {[%emt 0:00:11]} 22. c5 {[%emt 0:01:40]} dxc5 {[%emt 0:05:24]} 23. dxc5 {[%emt 0:00:34]} Rxb4 {[%emt 0:00:02]} 24. Rxb4 {[%emt 0:00:05]} Rxb4 {[%emt 0:00:24]} 25. Bxc7 {[%emt 0:00:11]} Rc4 {[%emt 0:03:18]} 26. Rxc4 {[%emt 0:03:16]} Qxc4 {[%emt 0:00:01]} 27. Bd6 {[%emt 0:00:01]} Bf6 {[%emt 0:01:23]} 28. Qa5 {[%emt 0:00:15]} h5 {[%emt 0:00:58]} 29. Qb6 {[%emt 0:00:26]} h4 {[%emt 0:00:12]} 30. c6 {[%emt 0:00:31]} 1-0

[Event "Hungarian Rapid-ch 2022"]
[Site "Ajka"]
[Date "2022.07.17"]
[Round "13.8"]
[White "Tolnai, Tibor"]
[Black "Kaczur, Florian"]
[Result "1/2-1/2"]
[ECO "C55"]
[WhiteElo "2433"]
[BlackElo "2482"]
[Annotator "ChessBase"]
[PlyCount "88"]
[EventDate "2022.07.15"]
[EventType "swiss"]
[EventCountry "HUN"]
[SourceTitle "playchess.com"]
[Source "ChessBase"]
[SourceQuality "1"]
[TimeControl "900+10"]

1. e4 {[%emt 0:00:12]} e5 {[%emt 0:00:11]} 2. Nf3 {[%emt 0:00:03]} Nc6 {[%emt 0:00:02]} 3. Bc4 {[%emt 0:00:07]} Nf6 {[%emt 0:00:04]} 4. d3 {[%emt 0:00:02]} Be7 {[%emt 0:00:04]} 5. O-O {[%emt 0:00:11]} O-O {[%emt 0:00:04]} 6. Bb3 {[%emt 0:00:13]} d6 {[%emt 0:00:03]} 7. c3 {[%emt 0:00:04]} Na5 {[%emt 0:00:14]} 8. Bc2 {[%emt 0:00:01]} c5 {[%emt 0:00:02]} 9. h3 {[%emt 0:00:39]} b5 {[%emt 0:00:13]} 10. d4 {[%emt 0:00:32]} exd4 {[%emt 0:00:55]} 11. cxd4 {[%emt 0:00:02]} Nc6 {[%emt 0:00:34]} 12. e5 {[%emt 0:01:40]} dxe5 {[%emt 0:00:06]} 13. dxe5 {[%emt 0:00:01]} Nd5 {[%emt 0:00:10]} 14. a3 {[%emt 0:03:00]} c4 {[%emt 0:00:47]} 15. Be4 {[%emt 0:01:16]} Be6 {[%emt 0:00:04]} 16. Nc3 {[%emt 0:00:01]} Nxc3 {[%emt 0:00:29]} 17. bxc3 {[%emt 0:00:02]} Qxd1 {[%emt 0:01:10]} 18. Rxd1 {[%emt 0:00:02]} Rac8 {[%emt 0:02:26]} 19. Bxc6 {[%emt 0:05:35]} Rxc6 {[%emt 0:00:02]} 20. Nd4 {[%emt 0:00:01]} Rb6 {[%emt 0:02:07]} 21. Nxe6 {[%emt 0:00:23]} Rxe6 {[%emt 0:00:19]} 22. Rd5 {[%emt 0:00:13]} Rd8 {[%emt 0:00:41]} 23. Rxb5 {[%emt 0:01:00]} Rb6 {[%emt 0:00:18]} 24. Ra5 {[%emt 0:02:40]} Rd1+ {[%emt 0:00:16]} 25. Kh2 {[%emt 0:00:01]} Rb7 {[%emt 0:01:08]} 26. a4 {[%emt 0:00:11]} h5 {[%emt 0:00:27]} 27. Rb5 {[%emt 0:00:53]} Rxb5 {[%emt 0:00:19]} 28. axb5 {[%emt 0:00:01]} Bc5 {[%emt 0:00:02]} 29. Kg3 {[%emt 0:00:06]} h4+ {[%emt 0:01:22]} 30. Kf3 {[%emt 0:00:07]} Rf1 {[%emt 0:00:10]} 31. Ke4 {[%emt 0:00:11]} Rxf2 {[%emt 0:00:37]} 32. Kd5 {[%emt 0:00:04]} Bb6 {[%emt 0:00:05]} 33. Bg5 {[%emt 0:00:43]} Rxg2 {[%emt 0:01:10]} 34. Bxh4 {[%emt 0:00:12]} g5 {[%emt 0:01:08]} 35. Be1 {[%emt 0:00:01]} Rh2 {[%emt 0:00:25]} 36. Kxc4 {[%emt 0:00:18]} Rxh3 {[%emt 0:00:02]} 37. Ra2 {[%emt 0:00:17]} Re3 {[%emt 0:00:34]} 38. Bf2 {[%emt 0:00:06]} Rxe5 {[%emt 0:00:03]} 39. Bd4 {[%emt 0:00:15]} Re6 {[%emt 0:00:07]} 40. Kd5 {[%emt 0:00:04]} Re8 {[%emt 0:01:03]} 41. Rxa7 {[%emt 0:00:06]} Rd8+ {[%emt 0:00:19]} 42. Ke4 {[%emt 0:00:11]} Rxd4+ {[%emt 0:00:09]} 43. cxd4 {[%emt 0:00:08]} Bxa7 {[%emt 0:00:01]} 44. d5 {[%emt 0:00:01]} Kf8 {[%emt 0:00:07]} 1/2-1/2

[Event "Hungarian Rapid-ch 2022"]
[Site "Ajka"]
[Date "2022.07.17"]
[Round "13.9"]
[White "Kantor, Gergely"]
[Black "Csonka, Balazs"]
[Result "1/2-1/2"]
[ECO "E47"]
[WhiteElo "2582"]
[BlackElo "2495"]
[Annotator "ChessBase"]
[PlyCount "83"]
[EventDate "2022.07.15"]
[EventType "swiss"]
[EventCountry "HUN"]
[SourceTitle "playchess.com"]
[Source "ChessBase"]
[SourceQuality "1"]
[TimeControl "900+10"]

1. d4 {[%emt 0:00:16]} Nf6 {[%emt 0:00:12]} 2. c4 {[%emt 0:00:06]} e6 {[%emt 0:00:10]} 3. Nc3 {[%emt 0:00:02]} Bb4 {[%emt 0:00:04]} 4. e3 {[%emt 0:00:02]} O-O {[%emt 0:00:04]} 5. Bd3 {[%emt 0:00:02]} Re8 {[%emt 0:01:06]} 6. a3 {[%emt 0:00:44]} Bxc3+ {[%emt 0:00:13]} 7. bxc3 {[%emt 0:00:05]} e5 {[%emt 0:00:38]} 8. Ne2 {[%emt 0:00:08]} Nc6 {[%emt 0:02:24]} 9. O-O {[%emt 0:00:22]} b6 {[%emt 0:03:34]} 10. e4 {[%emt 0:01:24]} exd4 {[%emt 0:00:52]} 11. cxd4 {[%emt 0:00:13]} Nxe4 {[%emt 0:00:03]} 12. d5 {[%emt 0:00:04]} Na5 {[%emt 0:00:04]} 13. Qc2 {[%emt 0:00:14]} Nf6 {[%emt 0:00:06]} 14. Bb2 {[%emt 0:00:27]} d6 {[%emt 0:00:37]} 15. Ng3 {[%emt 0:00:12]} Bd7 {[%emt 0:01:28]} 16. Rfe1 {[%emt 0:00:32]} Rxe1+ {[%emt 0:00:24]} 17. Rxe1 {[%emt 0:00:03]} Nb7 {[%emt 0:00:02]} 18. Ne4 {[%emt 0:02:34]} Nxe4 {[%emt 0:00:21]} 19. Bxe4 {[%emt 0:00:31]} Qh4 {[%emt 0:00:40]} 20. Qc3 {[%emt 0:00:09]} f6 {[%emt 0:00:23]} 21. Bc2 {[%emt 0:00:30]} Re8 {[%emt 0:02:08]} 22. Bf5 {[%emt 0:00:11]} Ba4 {[%emt 0:02:42]} 23. Be6+ {[%emt 0:02:12]} Kf8 {[%emt 0:00:00]} 24. Qf3 {[%emt 0:01:38]} Nc5 {[%emt 0:00:17]} 25. g3 {[%emt 0:00:17]} Qh6 {[%emt 0:00:25]} 26. Re3 {[%emt 0:00:55]} Bd7 {[%emt 0:00:08]} 27. Qf5 {[%emt 0:01:05]} Nxe6 {[%emt 0:00:19]} 28. dxe6 {[%emt 0:00:06]} Bc6 {[%emt 0:00:01]} 29. g4 {[%emt 0:00:32]} Qg6 {[%emt 0:00:11]} 30. h4 {[%emt 0:00:37]} Qxf5 {[%emt 0:00:14]} 31. gxf5 {[%emt 0:00:01]} Ke7 {[%emt 0:00:16]} 32. h5 {[%emt 0:00:19]} Rg8 {[%emt 0:00:09]} 33. Kf1 {[%emt 0:01:52]} g6 {[%emt 0:00:10]} 34. hxg6 {[%emt 0:00:51]} hxg6 {[%emt 0:00:01]} 35. Rh3 {[%emt 0:00:02]} gxf5 {[%emt 0:00:09]} 36. Rh7+ {[%emt 0:00:01]} Kxe6 {[%emt 0:00:02]} 37. Rxc7 {[%emt 0:00:01]} Bf3 {[%emt 0:00:22]} 38. Rxa7 {[%emt 0:00:02]} Rc8 {[%emt 0:00:02]} 39. Ra4 {[%emt 0:00:15]} f4 {[%emt 0:00:21]} 40. c5 {[%emt 0:00:15]} Rxc5 {[%emt 0:00:17]} 41. Rxf4 {[%emt 0:00:03]} Rf5 {[%emt 0:00:01]} 42. Rxf5 {[%emt 0:00:03]} 1/2-1/2

[Event "Hungarian Rapid-ch 2022"]
[Site "Ajka"]
[Date "2022.07.17"]
[Round "13.10"]
[White "Mihok, Oliver"]
[Black "Csiszar, Csaba"]
[Result "0-1"]
[ECO "A04"]
[WhiteElo "2549"]
[BlackElo "2389"]
[Annotator "ChessBase"]
[PlyCount "124"]
[EventDate "2022.07.15"]
[EventType "swiss"]
[EventCountry "HUN"]
[SourceTitle "playchess.com"]
[Source "ChessBase"]
[SourceQuality "1"]
[TimeControl "900+10"]

1. Nf3 {[%emt 0:00:15]} c5 {[%emt 0:00:13]} 2. b3 {[%emt 0:00:19]} Nc6 {[%emt 0:00:03]} 3. Bb2 {[%emt 0:00:04]} Nf6 {[%emt 0:00:04]} 4. c4 {[%emt 0:00:15]} g6 {[%emt 0:00:05]} 5. g3 {[%emt 0:00:06]} Bg7 {[%emt 0:00:01]} 6. Bg2 {[%emt 0:00:02]} O-O {[%emt 0:00:03]} 7. O-O {[%emt 0:00:11]} d6 {[%emt 0:00:04]} 8. d4 {[%emt 0:00:18]} cxd4 {[%emt 0:00:48]} 9. Nxd4 {[%emt 0:00:02]} Bd7 {[%emt 0:00:13]} 10. Nc2 {[%emt 0:00:33]} Qc8 {[%emt 0:00:32]} 11. Re1 {[%emt 0:01:30]} Bh3 {[%emt 0:00:01]} 12. Bh1 {[%emt 0:00:11]} Rd8 {[%emt 0:01:03]} 13. Nc3 {[%emt 0:01:07]} Ng4 {[%emt 0:00:25]} 14. f3 {[%emt 0:01:21]} Nge5 {[%emt 0:00:14]} 15. Rb1 {[%emt 0:00:24]} e6 {[%emt 0:03:16]} 16. e4 {[%emt 0:00:59]} Qc7 {[%emt 0:00:30]} 17. Bg2 {[%emt 0:00:55]} Qb6+ {[%emt 0:00:28]} 18. Kh1 {[%emt 0:00:13]} Bxg2+ {[%emt 0:00:02]} 19. Kxg2 {[%emt 0:00:01]} a6 {[%emt 0:00:11]} 20. Qd2 {[%emt 0:01:19]} Rac8 {[%emt 0:00:19]} 21. Rbd1 {[%emt 0:00:40]} Nxc4 {[%emt 0:00:16]} 22. Na4 {[%emt 0:00:45]} Qb5 {[%emt 0:02:40]} 23. bxc4 {[%emt 0:00:09]} Qxa4 {[%emt 0:00:01]} 24. Bxg7 {[%emt 0:00:04]} Kxg7 {[%emt 0:00:01]} 25. Ne3 {[%emt 0:00:10]} Ne5 {[%emt 0:00:44]} 26. Qd4 {[%emt 0:01:04]} Kg8 {[%emt 0:00:01]} 27. Re2 {[%emt 0:01:07]} Nxc4 {[%emt 0:01:02]} 28. Ng4 {[%emt 0:00:23]} e5 {[%emt 0:00:02]} 29. Qd5 {[%emt 0:00:53]} Kg7 {[%emt 0:00:32]} 30. Rb1 {[%emt 0:00:16]} b5 {[%emt 0:00:33]} 31. h4 {[%emt 0:00:35]} h5 {[%emt 0:00:01]} 32. Nf2 {[%emt 0:00:11]} Qa3 {[%emt 0:01:19]} 33. Nd3 {[%emt 0:00:59]} Nb6 {[%emt 0:01:52]} 34. Qb3 {[%emt 0:00:10]} Rc3 {[%emt 0:00:37]} 35. Qxa3 {[%emt 0:00:12]} Rxa3 {[%emt 0:00:00]} 36. Nb4 {[%emt 0:00:08]} Rc8 {[%emt 0:00:18]} 37. Rd1 {[%emt 0:00:19]} Rc4 {[%emt 0:00:28]} 38. Rxd6 {[%emt 0:00:08]} Rxb4 {[%emt 0:00:05]} 39. Rxb6 Rba4 40. Re1 {[%emt 0:00:52]} Rxa2+ {[%emt 0:00:02]} 41. Kh3 {[%emt 0:00:01]} Ra1 {[%emt 0:00:04]} 42. Re2 {[%emt 0:00:37]} R4a2 {[%emt 0:00:01]} 43. Rxa2 {[%emt 0:00:05]} Rxa2 {[%emt 0:00:01]} 44. g4 {[%emt 0:00:01]} Ra3 {[%emt 0:00:15]} 45. Kg3 {[%emt 0:00:10]} hxg4 {[%emt 0:00:01]} 46. Kxg4 {[%emt 0:00:01]} Ra4 {[%emt 0:00:03]} 47. h5 {[%emt 0:00:23]} gxh5+ {[%emt 0:00:02]} 48. Kxh5 {[%emt 0:00:02]} b4 {[%emt 0:00:01]} 49. Kg5 {[%emt 0:00:07]} a5 {[%emt 0:00:01]} 50. Kf5 {[%emt 0:00:07]} Ra3 {[%emt 0:00:00]} 51. Kxe5 {[%emt 0:00:17]} Rxf3 {[%emt 0:00:02]} 52. Rb5 {[%emt 0:00:26]} Ra3 {[%emt 0:00:13]} 53. Kd4 {[%emt 0:00:12]} b3 {[%emt 0:00:03]} 54. Kc3 {[%emt 0:00:16]} a4 {[%emt 0:00:01]} 55. e5 {[%emt 0:00:15]} Ra2 {[%emt 0:00:04]} 56. Rb7 {[%emt 0:00:01]} Kg6 {[%emt 0:00:01]} 57. Rb6+ {[%emt 0:00:01]} Kf5 {[%emt 0:00:06]} 58. Rf6+ {[%emt 0:00:06]} Kxe5 {[%emt 0:00:01]} 59. Rxf7 {[%emt 0:00:01]} b2 {[%emt 0:00:01]} 60. Rb7 {[%emt 0:01:45]} a3 {[%emt 0:00:01]} 61. Rb5+ {[%emt 0:00:16]} Kd6 {[%emt 0:00:01]} 62. Kc2 {[%emt 0:00:20]} Ra1 {[%emt 0:00:01]} 0-1

[Event "Hungarian Rapid-ch 2022"]
[Site "Ajka"]
[Date "2022.07.17"]
[Round "13.11"]
[White "Bagi, Mate"]
[Black "Krstulovic, Alex"]
[Result "1/2-1/2"]
[ECO "B10"]
[WhiteElo "2460"]
[BlackElo "2413"]
[Annotator "ChessBase"]
[PlyCount "45"]
[EventDate "2022.07.15"]
[EventType "swiss"]
[EventCountry "HUN"]
[SourceTitle "playchess.com"]
[Source "ChessBase"]
[SourceQuality "1"]
[TimeControl "900+10"]

1. e4 {[%emt 0:00:13]} c6 {[%emt 0:00:12]} 2. Nf3 {[%emt 0:00:03]} d5 {[%emt 0:00:01]} 3. Nc3 {[%emt 0:00:01]} dxe4 {[%emt 0:00:01]} 4. Nxe4 {[%emt 0:00:01]} Nf6 {[%emt 0:00:01]} 5. Qe2 {[%emt 0:00:04]} Nxe4 {[%emt 0:00:05]} 6. Qxe4 {[%emt 0:00:01]} Nd7 {[%emt 0:00:01]} 7. Bc4 {[%emt 0:00:07]} Nf6 {[%emt 0:00:01]} 8. Ne5 {[%emt 0:00:02]} e6 {[%emt 0:00:01]} 9. Qe2 {[%emt 0:00:02]} b5 {[%emt 0:00:01]} 10. Bb3 {[%emt 0:00:16]} Qc7 {[%emt 0:01:08]} 11. O-O {[%emt 0:00:04]} Bd6 {[%emt 0:00:13]} 12. d4 {[%emt 0:00:01]} O-O {[%emt 0:00:17]} 13. Bf4 {[%emt 0:00:02]} a5 {[%emt 0:00:45]} 14. c3 {[%emt 0:00:04]} c5 {[%emt 0:03:26]} 15. dxc5 {[%emt 0:01:36]} Qxc5 {[%emt 0:01:01]} 16. Rad1 {[%emt 0:00:34]} Bb7 {[%emt 0:00:54]} 17. Nd7 {[%emt 0:04:32]} Nxd7 {[%emt 0:00:02]} 18. Bxd6 {[%emt 0:00:03]} Qc6 {[%emt 0:00:20]} 19. Qg4 {[%emt 0:00:21]} Nf6 {[%emt 0:02:37]} 20. Qh3 {[%emt 0:00:17]} Rfd8 {[%emt 0:00:01]} 21. Be5 {[%emt 0:00:39]} Qe4 {[%emt 0:00:36]} 22. Rde1 {[%emt 0:01:35]} Qg4 {[%emt 0:00:11]} 23. Qxg4 {[%emt 0:01:52]} 1/2-1/2

[Event "Hungarian Rapid-ch 2022"]
[Site "Ajka"]
[Date "2022.07.17"]
[Round "13.12"]
[White "Kiss, Pal"]
[Black "Hera, Imre Jr."]
[Result "0-1"]
[ECO "E15"]
[WhiteElo "2243"]
[BlackElo "2568"]
[Annotator "ChessBase"]
[PlyCount "46"]
[EventDate "2022.07.15"]
[EventType "swiss"]
[EventCountry "HUN"]
[SourceTitle "playchess.com"]
[Source "ChessBase"]
[SourceQuality "1"]
[TimeControl "900+10"]

1. d4 {[%emt 0:00:11]} Nf6 {[%emt 0:00:12]} 2. c4 {[%emt 0:00:03]} e6 {[%emt 0:00:04]} 3. Nf3 {[%emt 0:00:03]} b6 {[%emt 0:00:05]} 4. g3 {[%emt 0:00:06]} Bb7 {[%emt 0:00:01]} 5. Bg2 {[%emt 0:00:02]} c5 {[%emt 0:00:02]} 6. d5 {[%emt 0:00:04]} exd5 {[%emt 0:00:02]} 7. Nh4 {[%emt 0:00:01]} g6 {[%emt 0:00:06]} 8. Nc3 {[%emt 0:00:07]} Bg7 {[%emt 0:00:04]} 9. O-O {[%emt 0:00:03]} O-O {[%emt 0:00:02]} 10. Bg5 {[%emt 0:00:04]} h6 {[%emt 0:00:49]} 11. Bxf6 {[%emt 0:00:07]} Qxf6 {[%emt 0:02:15]} 12. Nxd5 {[%emt 0:01:27]} Bxd5 {[%emt 0:00:03]} 13. Qxd5 {[%emt 0:02:21]} Nc6 {[%emt 0:00:01]} 14. Qxd7 {[%emt 0:00:26]} Rac8 {[%emt 0:00:01]} 15. Rad1 {[%emt 0:04:10]} Nd4 {[%emt 0:02:31]} 16. Qxa7 {[%emt 0:03:25]} g5 {[%emt 0:01:06]} 17. Nf3 {[%emt 0:00:18]} Nxe2+ {[%emt 0:00:02]} 18. Kh1 {[%emt 0:00:01]} Ra8 {[%emt 0:00:32]} 19. Qb7 {[%emt 0:00:22]} Rxa2 {[%emt 0:00:11]} 20. Rd2 {[%emt 0:02:23]} Rxb2 {[%emt 0:00:05]} 21. Rxb2 {[%emt 0:00:11]} Qxb2 {[%emt 0:00:02]} 22. Ng1 {[%emt 0:00:57]} Nc3 {[%emt 0:00:17]} 23. Re1 {[%emt 0:00:19]} Qxf2 {[%emt 0:00:11]} 0-1